bitfinex/quotes_BTCUSD_20241223
["timestamp","ask_amount","ask_price","bid_price","bid_amount"]
[1734942753037,0.00322788,95128.0,95127.0,0.210245]
[1734942753273,0.00322788,95128.0,95123.0,0.3115604]
[1734942753675,0.00322788,95128.0,95127.0,0.001]
[1734942754144,0.00022788,95128.0,95127.0,0.00071782]
[1734942754591,0.00122788,95128.0,95127.0,0.00071782]
[1734942754807,0.00022788,95128.0,95127.0,0.00071782]
[1734942754984,0.00122788,95128.0,95127.0,0.00071782]
[1734942755337,0.00022788,95128.0,95124.0,0.00071782]
[1734942755568,0.00022788,95128.0,95125.0,0.420498]
[1734942755751,0.00122788,95128.0,95127.0,0.210245]
[1734942755946,0.00022788,95128.0,95127.0,0.210245]
[1734942756548,0.00022788,95128.0,95127.0,0.4615534]
[1734942756951,0.00022788,95128.0,95127.0,0.4635534]
[1734942757609,0.00122788,95128.0,95127.0,0.4615534]
[1734942757827,0.00122788,95128.0,95127.0,0.4635534]
[1734942758020,0.00022788,95128.0,95127.0,0.4635534]
[1734942758222,0.00022788,95128.0,95127.0,0.4685534]
[1734942759194,0.00022788,95128.0,95127.0,0.4665534]
[1734942759411,0.00022788,95128.0,95127.0,0.4695534]
[1734942759620,0.00022788,95128.0,95127.0,0.48560685]
[1734942760019,0.00022788,95128.0,95127.0,0.48260685]
[1734942760228,0.00022788,95128.0,95127.0,0.48660685]
[1734942760835,0.00022788,95128.0,95127.0,0.48960685]
[1734942761241,0.00022788,95128.0,95127.0,0.48660685]
[1734942761464,0.00122788,95128.0,95127.0,0.49260685]
[1734942762311,0.00022788,95128.0,95127.0,0.48660685]
[1734942762515,0.00022788,95128.0,95127.0,0.48260685]
[1734942762709,0.00022788,95128.0,95127.0,0.48560685]
[1734942763131,0.00022788,95128.0,95127.0,0.48760685]
[1734942763559,0.00022788,95128.0,95127.0,0.48560685]
[1734942763876,0.0009895,95147.0,95146.0,0.210203]
[1734942764216,0.0832,95154.0,95146.0,0.210203]
[1734942765051,0.002,95147.0,95146.0,0.210203]
[1734942765418,0.0832,95154.0,95146.0,0.210203]
[1734942765624,0.0882,95154.0,95146.0,0.211203]
[1734942765823,0.0882,95154.0,95146.0,0.421406]
[1734942766026,0.0832,95154.0,95146.0,0.420406]
[1734942766628,0.002,95154.0,95150.0,0.210192]
[1734942768190,0.007,95154.0,95150.0,0.211192]
[1734942768361,0.007,95154.0,95150.0,0.001]
[1734942768765,0.007,95154.0,95150.0,0.03815799]
[1734942769026,0.420375,95153.0,95150.0,0.03815799]
[1734942770187,0.421375,95153.0,95150.0,0.03815799]
[1734942770559,0.211187,95153.0,95150.0,0.03815799]
[1734942770709,0.211187,95153.0,95142.0,0.23125833]
[1734942771359,0.216187,95153.0,95142.0,0.23125833]
[1734942771636,0.211187,95153.0,95142.0,0.21021]
[1734942771839,0.216187,95153.0,95142.0,0.21021]
[1734942772035,0.215187,95153.0,95142.0,0.21021]
[1734942772447,0.216187,95153.0,95142.0,0.24725388]
[1734942772648,0.006,95153.0,95144.0,0.210207]
[1734942773427,0.005,95153.0,95144.0,0.210207]
[1734942773873,0.006,95153.0,95144.0,0.210207]
[1734942774058,0.001,95153.0,95144.0,0.210207]
[1734942774426,0.216187,95153.0,95144.0,0.211207]
[1734942774572,0.006,95153.0,95144.0,0.211207]
[1734942775358,0.006,95153.0,95148.0,0.210197]
[1734942775632,0.006,95153.0,95144.0,0.001]
[1734942775920,0.006,95153.0,95146.0,0.210203]
[1734942776120,0.005,95153.0,95146.0,0.210203]
[1734942776498,0.006,95153.0,95142.0,0.210212]
[1734942776703,0.006,95153.0,95143.0,0.00071737]
[1734942777051,0.005,95153.0,95143.0,0.00071737]
[1734942777242,0.2103562,95154.0,95143.0,0.00071737]
[1734942777810,0.005,95153.0,95148.0,0.001]
[1734942778059,0.2103562,95154.0,95143.0,0.00071737]
[1734942778239,0.005,95153.0,95144.0,0.210207]
[1734942778444,0.006,95153.0,95144.0,0.210207]
[1734942778645,0.001,95153.0,95144.0,0.210207]
[1734942778849,0.2153562,95154.0,95144.0,0.210207]
[1734942779309,0.2173562,95154.0,95144.0,0.210207]
[1734942779518,0.2123562,95154.0,95144.0,0.210207]
[1734942779748,0.2103562,95154.0,95144.0,0.210207]
[1734942780130,0.0021712,95154.0,95144.0,0.420414]
[1734942780305,0.0021712,95154.0,95144.0,0.210207]
[1734942780729,0.2123562,95154.0,95144.0,0.210207]
[1734942780928,0.2123562,95154.0,95144.0,0.211207]
[1734942780929,0.005,95153.0,95144.0,0.211207]
[1734942781132,0.005,95153.0,95140.0,0.03592211]
[1734942781340,0.210202,95147.0,95138.0,0.15]
[1734942781523,0.0021712,95154.0,95144.0,0.001]
[1734942781524,0.082,95146.0,95144.0,0.001]
[1734942781930,0.082,95146.0,95138.0,0.15]
[1734942782178,0.082,95146.0,95140.0,0.15]
[1734942782381,0.082,95146.0,95144.0,0.001]
[1734942782558,0.0813,95153.0,95145.0,0.210205]
[1734942782760,0.0813,95153.0,95148.0,0.210196]
[1734942783069,0.0813,95153.0,95140.0,0.25164027]
[1734942783070,0.0001712,95154.0,95150.0,0.210193]
[1734942783265,0.0001712,95154.0,95146.0,0.210201]
[1734942783910,0.0001712,95154.0,95147.0,0.00071729]
[1734942784211,0.0001712,95154.0,95140.0,0.28806315]
[1734942784386,0.0001712,95154.0,95143.0,0.210209]
[1734942784525,0.0001712,95154.0,95150.0,0.210194]
[1734942785251,0.005,95153.0,95150.0,0.210194]
[1734942785802,0.005,95153.0,95150.0,0.001]
[1734942785803,0.006,95153.0,95150.0,0.001]
[1734942786144,0.0001712,95154.0,95150.0,0.210194]
[1734942786353,0.001,95153.0,95150.0,0.210194]
[1734942787020,0.0001712,95154.0,95150.0,0.210194]
[1734942787172,0.0021712,95154.0,95150.0,0.210194]
[1734942787777,0.0021712,95154.0,95147.0,0.210201]
[1734942788003,0.210187,95153.0,95144.0,0.1013084]
[1734942788204,0.210212,95142.0,95140.0,0.03642288]
[1734942788379,0.08261384,95141.0,95140.0,0.03642288]
[1734942788585,0.08261384,95141.0,95134.0,0.0940773]
[1734942788586,0.210227,95135.0,95134.0,0.0940773]
[1734942789281,0.291527,95135.0,95134.0,0.0940773]
[1734942789711,0.21024,95129.0,95128.0,0.03674083]
[1734942790842,0.21024,95129.0,95112.0,0.38438043]
[1734942791017,0.21024,95129.0,95117.0,0.00016081]
[1734942791428,0.210251,95125.0,95117.0,0.00016081]
[1734942792268,0.21324,95129.0,95117.0,0.00016081]
[1734942792473,0.0813,95135.0,95117.0,0.00016081]
[1734942792639,0.210258,95121.0,95117.0,0.00016081]
[1734942793242,0.210262,95119.0,95117.0,0.00016081]
[1734942793472,0.210262,95119.0,95117.0,0.00116081]
[1734942793640,0.210235,95132.0,95117.0,0.00116081]
[1734942793844,0.21025,95125.0,95117.0,0.00016081]
[1734942794116,0.210254,95123.0,95117.0,0.00016081]
[1734942794356,0.21025,95125.0,95117.0,0.00016081]
[1734942794357,0.210258,95121.0,95117.0,0.00016081]
[1734942794543,0.21025,95125.0,95117.0,0.00016081]
[1734942794746,0.00131414,95124.0,95117.0,0.00016081]
[1734942795273,0.00131414,95124.0,95117.0,0.00216081]
[1734942795472,0.00131414,95124.0,95117.0,0.00316081]
[1734942795696,0.0815,95143.0,95118.0,0.3115734]
[1734942795898,0.0815,95143.0,95127.0,0.10164027]
[1734942796097,0.0815,95143.0,95133.0,0.21023]
[1734942796298,0.0935375,95146.0,95133.0,0.420461]
[1734942796504,0.0935375,95146.0,95135.0,0.210227]
[1734942796712,0.210197,95149.0,95135.0,0.210227]
[1734942796929,0.011,95137.0,95135.0,0.210227]
[1734942797308,0.002,95137.0,95135.0,0.210227]
[1734942797469,0.004,95137.0,95135.0,0.210227]
[1734942797669,0.004,95137.0,95136.0,0.210225]
[1734942798116,0.004,95137.0,95136.0,0.3115334]
[1734942798453,0.002,95137.0,95136.0,0.3115334]
[1734942798855,0.002,95149.0,95146.0,0.210202]
[1734942799345,0.0815,95152.0,95146.0,0.210202]
[1734942799764,0.0001712,95154.0,95151.0,0.210192]
[1734942799962,0.00030071,95154.0,95151.0,0.210192]
[1734942800737,0.00030071,95154.0,95151.0,0.420383]
[1734942801173,0.00030071,95154.0,95151.0,0.210191]
[1734942801795,0.00030071,95154.0,95151.0,0.420382]
[1734942801969,0.00030071,95154.0,95151.0,0.210191]
[1734942802171,0.00530071,95154.0,95151.0,0.001]
[1734942802380,0.001,95152.0,95142.0,0.15]
[1734942802551,0.001,95152.0,95143.0,0.210209]
[1734942802754,0.00030071,95154.0,95144.0,0.15]
[1734942802755,0.00130071,95154.0,95144.0,0.15]
[1734942802958,0.0832,95152.0,95141.0,0.03542653]
[1734942803171,0.0832,95152.0,95151.0,0.001]
[1734942803599,0.0832,95152.0,95132.0,0.15]
[1734942803600,0.210202,95147.0,95136.0,0.15]
[1734942803799,0.210202,95147.0,95137.0,0.210223]
[1734942804008,0.210202,95147.0,95144.0,0.001]
[1734942804383,0.0472,95151.0,95144.0,0.001]
[1734942805367,0.04851374,95151.0,95144.0,0.001]
[1734942805496,0.04851374,95151.0,95137.0,0.210223]
[1734942806039,0.210194,95150.0,95137.0,0.210223]
[1734942806716,0.210204,95146.0,95144.0,0.001]
[1734942807045,0.210204,95146.0,95134.0,0.15]
[1734942807248,0.420408,95146.0,95134.0,0.15]
[1734942807646,0.210204,95146.0,95134.0,0.360227]
[1734942808316,0.001,95150.0,95134.0,0.360227]
[1734942808517,0.005,95150.0,95138.0,0.210219]
[1734942808719,0.0001712,95146.0,95134.0,0.360228]
[1734942809066,0.0021712,95146.0,95134.0,0.360228]
[1734942809356,0.0001712,95146.0,95134.0,0.360228]
[1734942810386,0.0001712,95146.0,95134.0,0.15]
[1734942810387,0.0021712,95146.0,95134.0,0.15]
[1734942810592,0.0021712,95146.0,95135.0,0.210227]
[1734942811499,0.210205,95145.0,95134.0,0.15]
[1734942812802,0.0001712,95146.0,95134.0,0.15]
[1734942812930,0.00148499,95146.0,95134.0,0.15]
[1734942813292,0.00148499,95146.0,95135.0,0.210227]
[1734942813623,0.004,95145.0,95135.0,0.210227]
[1734942814582,0.004,95145.0,95135.0,0.420454]
[1734942814796,0.004,95145.0,95139.0,0.210217]
[1734942815533,0.004,95145.0,95137.0,0.210222]
[1734942815738,0.0011712,95146.0,95138.0,0.10202609]
[1734942815943,0.004,95145.0,95138.0,0.10202609]
[1734942816116,0.004,95145.0,95139.0,0.210218]
[1734942816325,0.0001712,95146.0,95137.0,0.210223]
[1734942816640,0.005,95145.0,95137.0,0.210223]
[1734942816849,0.005,95145.0,95131.0,0.15]
[1734942817044,0.0001712,95146.0,95141.0,0.210213]
[1734942817244,0.002,95145.0,95143.0,0.420418]
[1734942817420,0.002,95145.0,95144.0,0.00071741]
[1734942817622,0.002,95145.0,95144.0,0.10202581]
[1734942818640,0.0001712,95146.0,95144.0,0.12286889]
[1734942818809,0.0001712,95146.0,95145.0,0.210205]
[1734942820918,0.0001712,95146.0,95145.0,0.211205]
[1734942821256,0.0001712,95146.0,95145.0,0.25360569]
[1734942821490,0.0001712,95146.0,95145.0,0.40360569]
[1734942822956,0.0001712,95146.0,95145.0,0.40260569]
[1734942823378,0.0001712,95146.0,95145.0,0.40360569]
[1734942826356,0.0001712,95146.0,95145.0,0.40310569]
[1734942827202,0.0001712,95146.0,95145.0,0.40210569]
[1734942827408,0.0001712,95146.0,95145.0,0.40810569]
[1734942827918,0.0001712,95146.0,95145.0,0.40510569]
[1734942828922,0.0001712,95146.0,95145.0,0.40210569]
[1734942829144,0.0001712,95146.0,95145.0,0.40510569]
[1734942829542,0.0001712,95146.0,95145.0,0.40210569]
[1734942829757,0.0001712,95146.0,95145.0,0.40410569]
[1734942830395,0.0001712,95146.0,95145.0,0.40510569]
[1734942830593,0.0001712,95146.0,95145.0,0.40310569]
[1734942830804,0.0001712,95146.0,95145.0,0.40210569]
[1734942831099,0.0001712,95146.0,95145.0,0.40410569]
[1734942831452,0.0001712,95146.0,95145.0,0.40210569]
[1734942831658,0.0001712,95146.0,95145.0,0.40410569]
[1734942832081,0.0001712,95146.0,95145.0,0.40610569]
[1734942832482,0.0009934,95164.0,95154.0,0.1]
[1734942832650,0.0009934,95164.0,95157.0,0.075]
[1734942832851,0.0001712,95169.0,95166.0,0.15]
[1734942833059,0.0001712,95169.0,95167.0,0.31218105]
[1734942833271,0.0001712,95169.0,95167.0,0.3114644]
[1734942835621,0.0001712,95169.0,95167.0,0.3134644]
[1734942835973,0.0021712,95168.0,95167.0,0.3566139]
[1734942836205,0.0001712,95168.0,95167.0,0.3566139]
[1734942836412,0.0001712,95168.0,95167.0,0.3576139]
[1734942837425,0.0001712,95168.0,95167.0,0.0461495]
[1734942838451,0.0001712,95168.0,95167.0,0.0441495]
[1734942839029,0.0001712,95168.0,95167.0,0.0431495]
[1734942839234,0.0011712,95168.0,95167.0,0.0431495]
[1734942839547,0.0011712,95168.0,95163.0,0.15]
[1734942839750,0.0011712,95168.0,95164.0,0.420325]
[1734942839960,0.0011712,95168.0,95164.0,0.210162]
[1734942840533,0.0001712,95168.0,95164.0,0.210162]
[1734942840996,0.0011712,95168.0,95164.0,0.210162]
[1734942841353,0.0011712,95168.0,95162.0,0.02084983]
[1734942842301,0.0001712,95168.0,95162.0,0.02084983]
[1734942842662,0.0011712,95168.0,95162.0,0.02084983]
[1734942843460,0.1301,95167.0,95162.0,0.02084983]
[1734942844856,0.1301,95167.0,95162.0,0.02184983]
[1734942845281,0.340258,95167.0,95162.0,0.001]
[1734942845625,0.1301,95167.0,95162.0,0.001]
[1734942845828,0.1311,95167.0,95162.0,0.001]
[1734942846033,0.0834,95167.0,95163.0,0.210165]
[1734942846398,0.0834,95167.0,95163.0,0.42033]
[1734942846601,0.0001712,95168.0,95166.0,0.15]
[1734942846743,0.0001712,95168.0,95167.0,0.10202505]
[1734942846950,0.0001712,95168.0,95167.0,0.46218105]
[1734942847158,0.0001712,95168.0,95167.0,0.4614644]
[1734942848667,0.0001712,95168.0,95167.0,0.50421767]
[1734942849281,0.0001712,95168.0,95167.0,0.50521767]
[1734942849483,0.0001712,95168.0,95167.0,0.50421767]
[1734942849894,0.0001712,95168.0,95167.0,0.50521767]
[1734942850249,0.0011712,95168.0,95167.0,0.51021767]
[1734942850539,0.0001712,95186.0,95167.0,0.51021767]
[1734942850540,0.0001712,95186.0,95183.0,0.210121]
[1734942850746,0.00070704,95184.0,95183.0,0.3114294]
[1734942852440,0.00070704,95184.0,95183.0,0.3323182]
[1734942853092,0.00070704,95184.0,95183.0,0.2310098]
[1734942853241,0.00070704,95184.0,95183.0,0.0208888]
[1734942853574,0.00070704,95184.0,95183.0,0.0218888]
[1734942853957,0.00070704,95184.0,95183.0,0.0208888]
[1734942855143,0.00070704,95184.0,95183.0,0.02160525]
[1734942855569,0.00270704,95184.0,95183.0,0.02160525]
[1734942855838,0.00070704,95184.0,95183.0,0.02160525]
[1734942856041,0.00070704,95184.0,95183.0,0.02260525]
[1734942856289,0.00270704,95184.0,95183.0,0.02260525]
[1734942856469,0.00270704,95184.0,95183.0,0.02160525]
[1734942856803,0.00270704,95184.0,95183.0,0.02360525]
[1734942859450,0.210084,95200.0,95184.0,0.420238]
[1734942859640,0.00010689,95196.0,95184.0,0.210119]
[1734942860459,0.00010689,95196.0,95188.0,0.210108]
[1734942862099,0.00410689,95196.0,95185.0,0.210117]
[1734942862504,0.00010689,95196.0,95185.0,0.210117]
[1734942862706,0.00410689,95196.0,95185.0,0.210117]
[1734942863006,0.00010689,95196.0,95185.0,0.210117]
[1734942863235,0.00110689,95196.0,95183.0,0.0208888]
[1734942863413,0.210095,95195.0,95183.0,0.23206029]
[1734942863998,0.00059678,95194.0,95183.0,0.0208888]
[1734942864205,0.0784,95193.0,95183.0,0.0208888]
[1734942864438,0.00059678,95192.0,95183.0,0.0208888]
[1734942864853,0.0784,95193.0,95183.0,0.0208888]
[1734942864854,0.07899678,95193.0,95183.0,0.0208888]
[1734942865265,0.0784,95193.0,95183.0,0.0208888]
[1734942865535,0.0784,95193.0,95184.0,0.210119]
[1734942866322,0.0804,95193.0,95184.0,0.210119]
[1734942866523,0.0784,95193.0,95184.0,0.210119]
[1734942866936,0.0804,95193.0,95184.0,0.210119]
[1734942867282,0.0814,95193.0,95184.0,0.210119]
[1734942869426,0.08199678,95193.0,95184.0,0.210119]
[1734942869776,0.0814,95193.0,95188.0,0.21011]
[1734942869997,0.0815712,95193.0,95185.0,0.210117]
[1734942870179,0.0815712,95193.0,95186.0,0.210114]
[1734942870800,0.0805712,95193.0,95186.0,0.210114]
[1734942871160,0.0815712,95193.0,95186.0,0.210114]
[1734942871627,0.0795712,95193.0,95186.0,0.210114]
[1734942871776,0.0031712,95193.0,95190.0,0.420211]
[1734942872122,0.0011712,95193.0,95190.0,0.420211]
[1734942872298,0.0011712,95193.0,95192.0,0.210101]
[1734942872644,0.0031712,95193.0,95192.0,0.210101]
[1734942872830,0.0011712,95193.0,95192.0,0.210101]
[1734942873034,0.0001712,95193.0,95192.0,0.210101]
[1734942873209,0.0011712,95193.0,95192.0,0.210101]
[1734942873938,0.0001712,95193.0,95192.0,0.210101]
[1734942874092,0.0001712,95193.0,95192.0,0.211101]
[1734942874734,0.0001712,95193.0,95192.0,0.210101]
[1734942875461,0.0001712,95193.0,95192.0,0.211101]
[1734942876506,0.0001712,95193.0,95192.0,0.210101]
[1734942876706,0.0021712,95193.0,95192.0,0.211101]
[1734942877140,0.0021712,95193.0,95192.0,0.001]
[1734942877338,0.0021712,95193.0,95187.0,0.210112]
[1734942877484,0.0021712,95193.0,95192.0,0.001]
[1734942877985,0.0021712,95193.0,95187.0,0.210112]
[1734942878194,0.0021712,95193.0,95191.0,0.210103]
[1734942878556,0.0021712,95193.0,95192.0,0.001]
[1734942878853,0.0001712,95193.0,95192.0,0.001]
[1734942879059,0.0001712,95193.0,95192.0,0.003]
[1734942879254,0.0001712,95193.0,95192.0,0.001]
[1734942879681,0.0011712,95193.0,95191.0,0.210103]
[1734942880073,0.0001712,95193.0,95191.0,0.210103]
[1734942880280,0.0011712,95193.0,95191.0,0.210103]
[1734942880839,0.0001712,95193.0,95191.0,0.211103]
[1734942881048,0.0001712,95193.0,95191.0,0.001]
[1734942881382,0.0001712,95193.0,95187.0,0.210112]
[1734942881789,0.0001712,95193.0,95191.0,0.210103]
[1734942882286,0.0001712,95193.0,95191.0,0.211103]
[1734942882692,0.0001712,95193.0,95191.0,0.210103]
[1734942882883,0.0011712,95193.0,95191.0,0.210103]
[1734942883305,0.0001712,95193.0,95191.0,0.210103]
[1734942883729,0.0021712,95193.0,95191.0,0.210103]
[1734942883926,0.0001712,95193.0,95191.0,0.210103]
[1734942884152,0.0001712,95193.0,95191.0,0.24049557]
[1734942885582,0.0011712,95193.0,95191.0,0.24049557]
[1734942885795,0.0001712,95193.0,95191.0,0.24049557]
[1734942886006,0.0822,95217.0,95210.0,0.210061]
[1734942886215,0.0823714,95223.0,95210.0,0.210061]
[1734942887336,0.0031712,95211.0,95210.0,0.210061]
[1734942887751,0.0041712,95211.0,95210.0,0.210061]
[1734942888205,0.0031712,95211.0,95210.0,0.210061]
[1734942888569,0.01660056,95211.0,95210.0,0.210061]
[1734942889509,0.01860056,95211.0,95210.0,0.210061]
[1734942889717,0.01660056,95211.0,95210.0,0.210061]
[1734942889867,0.01660056,95211.0,95210.0,0.24092088]
[1734942890095,0.01860056,95211.0,95210.0,0.24092088]
[1734942890302,0.01660056,95211.0,95210.0,0.36330772]
[1734942890500,0.01660056,95211.0,95210.0,0.51430772]
[1734942891408,0.01660056,95211.0,95210.0,0.51330772]
[1734942891799,0.01660056,95211.0,95210.0,0.51430772]
[1734942892220,0.01660056,95211.0,95210.0,0.51530772]
[1734942892386,0.01660056,95211.0,95210.0,0.51830772]
[1734942893867,0.01660056,95211.0,95210.0,0.51630772]
[1734942894166,0.01660056,95211.0,95210.0,0.51830772]
[1734942898478,0.01660056,95211.0,95210.0,0.05693832]
[1734942898683,0.01660056,95211.0,95210.0,0.03585988]
[1734942899652,0.01660056,95211.0,95210.0,0.03285988]
[1734942899851,0.01660056,95211.0,95210.0,0.03085988]
[1734942900049,0.01660056,95211.0,95208.0,0.02124456]
[1734942900258,0.06500056,95211.0,95210.0,0.001]
[1734942900462,0.1280712,95211.0,95210.0,0.001]
[1734942900667,0.2293796,95211.0,95193.0,0.0221628]
[1734942900860,0.0795,95195.0,95193.0,0.0221628]
[1734942901062,0.0795,95195.0,95193.0,0.031449]
[1734942901321,0.0795,95195.0,95190.0,0.210105]
[1734942901445,0.0795,95195.0,95188.0,0.2322718]
[1734942902272,0.0795,95195.0,95187.0,0.210112]
[1734942902727,0.0795,95195.0,95188.0,0.002]
[1734942902907,0.0795,95195.0,95189.0,0.210108]
[1734942903231,0.0795,95195.0,95193.0,0.002]
[1734942903449,0.0815,95195.0,95193.0,0.002]
[1734942903810,0.0795,95195.0,95191.0,0.210101]
[1734942904029,0.0795,95195.0,95187.0,0.210112]
[1734942904791,0.0805,95195.0,95187.0,0.210112]
[1734942905049,0.0805,95195.0,95186.0,0.03077619]
[1734942905213,0.0825,95195.0,95186.0,0.03077619]
[1734942905427,0.0805,95195.0,95186.0,0.03077619]
[1734942905633,0.21069378,95194.0,95186.0,0.03077619]
[1734942906231,0.210097,95194.0,95186.0,0.03077619]
[1734942906911,0.212097,95194.0,95186.0,0.03077619]
[1734942907311,0.002,95194.0,95186.0,0.03077619]
[1734942908489,0.002,95194.0,95187.0,0.210112]
[1734942908709,0.002,95194.0,95191.0,0.210102]
[1734942908882,0.002,95194.0,95186.0,0.03077619]
[1734942909276,0.000171,95195.0,95186.0,0.24089019]
[1734942909703,0.212097,95194.0,95186.0,0.03077619]
[1734942910284,0.213097,95194.0,95186.0,0.03077619]
[1734942910498,0.210097,95194.0,95186.0,0.03077619]
[1734942910901,0.210267,95195.0,95186.0,0.03077619]
[1734942911127,0.00059678,95194.0,95186.0,0.03077619]
[1734942911329,0.210267,95195.0,95186.0,0.03077619]
[1734942911860,0.00059678,95194.0,95186.0,0.03077619]
[1734942912036,0.00259678,95194.0,95186.0,0.03077619]
[1734942912403,0.210267,95195.0,95186.0,0.03077619]
[1734942912606,0.000171,95195.0,95186.0,0.03077619]
[1734942912841,0.000171,95195.0,95187.0,0.210112]
[1734942913257,0.002171,95195.0,95187.0,0.210112]
[1734942913637,0.001171,95195.0,95187.0,0.210112]
[1734942913832,0.002171,95195.0,95187.0,0.210112]
[1734942914032,0.001171,95195.0,95187.0,0.210112]
[1734942914545,0.002171,95195.0,95187.0,0.210112]
[1734942915250,0.001171,95195.0,95187.0,0.210112]
[1734942915475,0.003171,95195.0,95187.0,0.210112]
[1734942916827,0.003171,95195.0,95191.0,0.210102]
[1734942917022,0.003171,95195.0,95193.0,0.210099]
[1734942917208,0.003171,95195.0,95194.0,0.2513084]
[1734942917553,0.002171,95195.0,95194.0,0.2513084]
[1734942918367,0.000171,95195.0,95194.0,0.2513084]
[1734942918628,0.002171,95195.0,95194.0,0.2513084]
[1734942919010,0.0001712,95211.0,95210.0,0.210061]
[1734942919210,0.0001712,95211.0,95210.0,0.3113694]
[1734942920424,0.0001712,95211.0,95210.0,0.4613694]
[1734942920672,0.0001712,95211.0,95210.0,0.4623694]
[1734942921283,0.0001712,95211.0,95210.0,0.49345378]
[1734942921438,0.0001712,95211.0,95210.0,0.57635378]
[1734942922060,0.0001712,95211.0,95210.0,0.57528178]
[1734942923296,0.0001714,95223.0,95210.0,0.62108178]
[1734942923496,0.0001714,95223.0,95222.0,0.210035]
[1734942923713,0.0001714,95223.0,95222.0,0.3113434]
[1734942925047,0.0041714,95223.0,95222.0,0.3113434]
[1734942925248,0.0001714,95223.0,95222.0,0.3113434]
[1734942925467,0.0001714,95223.0,95222.0,0.4613434]
[1734942925672,0.0021714,95223.0,95222.0,0.4633434]
[1734942925874,0.0021714,95223.0,95222.0,0.4841369]
[1734942926227,0.0001714,95223.0,95222.0,0.4841369]
[1734942926433,0.0001714,95223.0,95222.0,0.4831369]
[1734942927032,0.0001714,95223.0,95222.0,0.4821369]
[1734942927253,0.0001714,95223.0,95222.0,0.51554626]
[1734942927924,0.0001714,95223.0,95222.0,0.52054626]
[1734942940367,0.0001714,95223.0,95222.0,0.84094626]
[1734942941107,0.0001714,95223.0,95222.0,0.83594626]
[1734942941293,0.0001712,95242.0,95237.0,0.210002]
[1734942941494,0.0003318,95238.0,95237.0,0.4613104]
[1734942942629,0.0003318,95238.0,95237.0,0.4653104]
[1734942943274,0.0003318,95238.0,95237.0,0.4673104]
[1734942943674,0.0003318,95238.0,95237.0,0.49102912]
[1734942947350,0.0003318,95238.0,95237.0,0.51178485]
[1734942950057,0.0001712,95242.0,95241.0,0.209993]
[1734942950267,0.00026672,95242.0,95241.0,0.4613014]
[1734942951472,0.00026672,95242.0,95241.0,0.4623014]
[1734942952088,0.00026672,95242.0,95241.0,0.4633014]
[1734942952501,0.0001712,95243.0,95242.0,0.15]
[1734942952718,0.0001712,95243.0,95242.0,0.25235811]
[1734942952923,0.0001712,95243.0,95242.0,0.2513084]
[1734942953566,0.0001712,95243.0,95242.0,0.2523084]
[1734942954680,0.0001712,95243.0,95242.0,0.2533084]
[1734942957900,0.0001712,95243.0,95242.0,0.002]
[1734942961284,0.0001712,95243.0,95237.0,0.23371972]
[1734942961468,0.0021712,95243.0,95237.0,0.02371872]
[1734942961633,0.0021712,95243.0,95233.0,0.21001]
[1734942961832,0.0001712,95243.0,95233.0,0.21001]
[1734942962117,0.0021712,95243.0,95233.0,0.21001]
[1734942962342,0.0001712,95243.0,95233.0,0.21001]
[1734942962678,0.00496,95238.0,95233.0,0.21001]
[1734942965690,0.00496,95238.0,95233.0,0.23332306]
[1734942966420,0.00496,95238.0,95233.0,0.44333306]
[1734942967694,0.00496,95238.0,95233.0,0.44341866]
[1734942971535,0.00596,95238.0,95233.0,0.44341866]
[1734942971738,0.00596,95238.0,95233.0,0.23340866]
[1734942971938,0.00496,95238.0,95237.0,0.210002]
[1734942975284,0.00496,95238.0,95233.0,0.23340866]
[1734942975488,0.00496,95238.0,95233.0,0.44341966]
[1734942975687,0.00496,95238.0,95236.0,0.210002]
[1734942977478,0.00596,95238.0,95234.0,0.15]
[1734942977690,0.00596,95238.0,95235.0,0.210006]
[1734942977892,0.00496,95238.0,95236.0,0.15]
[1734942978245,0.00496,95238.0,95237.0,0.3113104]
[1734942978246,0.00596,95238.0,95237.0,0.3113104]
[1734942978453,0.00496,95238.0,95237.0,0.3113104]
[1734942978872,0.00596,95238.0,95237.0,0.3113104]
[1734942979563,0.00596,95238.0,95237.0,0.3123104]
[1734942980341,0.00496,95238.0,95237.0,0.3123104]
[1734942980533,0.00496,95238.0,95237.0,0.3133104]
[1734942984597,0.00496,95238.0,95237.0,0.4633104]
[1734942985399,0.00496,95238.0,95237.0,0.4623104]
[1734942985792,0.00496,95238.0,95237.0,0.4633104]
[1734942986219,0.00496,95238.0,95237.0,0.4623104]
[1734942986521,0.00496,95238.0,95237.0,0.4613104]
[1734942986933,0.00496,95238.0,95237.0,0.55560092]
[1734942987352,0.00496,95238.0,95237.0,0.55660092]
[1734942987621,0.00496,95238.0,95237.0,0.55560092]
[1734942988033,0.00496,95238.0,95237.0,0.55760092]
[1734942988239,0.00496,95238.0,95237.0,0.4623104]
[1734942988853,0.00496,95238.0,95237.0,0.4613104]
[1734942989057,0.00496,95238.0,95237.0,0.4633104]
[1734942989554,0.00496,95238.0,95237.0,0.5435104]
[1734942989708,0.006259,95251.0,95243.0,0.15]
[1734942989908,0.006259,95251.0,95250.0,0.359973]
[1734942990139,0.006259,95251.0,95250.0,0.4612814]
[1734942991331,0.006259,95251.0,95250.0,0.34559892]
[1734942991535,0.006259,95251.0,95250.0,0.09429052]
[1734942991741,0.006259,95251.0,95250.0,0.11817057]
[1734942992226,0.085559,95251.0,95250.0,0.09429052]
[1734942992481,0.08615578,95251.0,95244.0,0.02406485]
[1734942992663,0.085559,95251.0,95250.0,0.001]
[1734942993011,0.085559,95251.0,95239.0,0.09429052]
[1734942993366,0.419946,95250.0,95239.0,0.09429052]
[1734942993576,0.209973,95250.0,95239.0,0.0236526]
[1734942993775,0.295531,95251.0,95240.0,0.209995]
[1734942993921,0.086559,95251.0,95240.0,0.209995]
[1734942994122,0.085559,95251.0,95241.0,0.1013084]
[1734942994334,0.006259,95251.0,95248.0,0.419954]
[1734942994525,0.001,95250.0,95249.0,0.1013084]
[1734942994732,0.006259,95251.0,95250.0,0.209973]
[1734942995352,0.008259,95251.0,95250.0,0.209973]
[1734942995757,0.006259,95251.0,95250.0,0.209973]